[Event "Titled Tuesday Blitz June 27 Late 2023"]
[White "Toncheva, Nadya"]
[Black "Vaglio Munoz, Jaime"]
[WhiteFideId "2924056"]
[BlackFideId "6500145"]
[WhiteElo "2480"]
[BlackElo "2274"]
[Result "0-1"]
[Round "6"]
[TimeControl "180+2"]
[Date "2023.06.27"]
[WhiteClock "0:00:07"]
[BlackClock "0:00:05"]
[Board "134"]

1. e4 {[%clk 0:03:00]}  c5 {[%clk 0:02:59]} 2. c3 {[%clk 0:03:00]}  Qa5 {[%clk 0:02:58]} 3. Nf3 {[%clk 0:02:59]}  Nc6 {[%clk 0:02:58]} 4. Be2 {[%clk 0:02:58]}  Nf6 {[%clk 0:02:57]} 5. e5 {[%clk 0:02:58]}  Ng4 {[%clk 0:02:56]} 6. O-O {[%clk 0:02:42]}  Ngxe5 {[%clk 0:02:54]} 7. Nxe5 {[%clk 0:02:43]}  Nxe5 {[%clk 0:02:54]} 8. d4 {[%clk 0:02:43]}  Nc6 {[%clk 0:02:49]} 9. d5 {[%clk 0:02:43]}  Ne5 {[%clk 0:02:49]} 10. f4 {[%clk 0:02:42]}  Ng6 {[%clk 0:02:47]} 11. c4 {[%clk 0:02:30]}  d6 {[%clk 0:02:46]} 12. Nc3 {[%clk 0:02:27]}  a6 {[%clk 0:02:45]} 13. Bd2 {[%clk 0:02:16]}  Qc7 {[%clk 0:02:42]} 14. a3 {[%clk 0:02:15]}  Nh4 {[%clk 0:02:33]} 15. Ne4 {[%clk 0:02:04]}  Nf5 {[%clk 0:02:16]} 16. b4 {[%clk 0:01:49]}  b6 {[%clk 0:02:14]} 17. bxc5 {[%clk 0:01:46]}  bxc5 {[%clk 0:02:14]} 18. Qe1 {[%clk 0:01:43]}  g6 {[%clk 0:02:10]} 19. Bc3 {[%clk 0:01:42]}  Bg7 {[%clk 0:02:09]} 20. Bxg7 {[%clk 0:01:13]}  Nxg7 {[%clk 0:02:10]} 21. g4 {[%clk 0:01:13]}  O-O {[%clk 0:02:07]} 22. Qc3 {[%clk 0:01:11]}  h5 {[%clk 0:01:53]} 23. gxh5 {[%clk 0:01:09]}  Nxh5 {[%clk 0:01:51]} 24. f5 {[%clk 0:01:06]}  Nf6 {[%clk 0:00:58]} 25. Nxf6+ {[%clk 0:01:02]}  exf6 {[%clk 0:00:59]} 26. fxg6 {[%clk 0:00:55]}  fxg6 {[%clk 0:00:44]} 27. Rxf6 {[%clk 0:00:55]}  Bf5 {[%clk 0:00:39]} 28. Rf1 {[%clk 0:00:50]}  Qe7 {[%clk 0:00:38]} 29. Rxf8+ {[%clk 0:00:48]}  Rxf8 {[%clk 0:00:39]} 30. Bd1 {[%clk 0:00:43]}  Qg5+ {[%clk 0:00:38]} 31. Qg3 {[%clk 0:00:40]}  Qd2 {[%clk 0:00:36]} 32. Qf4 {[%clk 0:00:24]}  Qxf4 {[%clk 0:00:33]} 33. Rxf4 {[%clk 0:00:25]}  Rb8 {[%clk 0:00:32]} 34. Kf2 {[%clk 0:00:25]}  Rb2+ {[%clk 0:00:31]} 35. Kg3 {[%clk 0:00:20]}  Rd2 {[%clk 0:00:27]} 36. Bf3 {[%clk 0:00:17]}  Kg7 {[%clk 0:00:27]} 37. h4 {[%clk 0:00:17]}  Ra2 {[%clk 0:00:23]} 38. h5 {[%clk 0:00:17]}  Rxa3 {[%clk 0:00:23]} 39. hxg6 {[%clk 0:00:16]}  Bxg6 {[%clk 0:00:23]} 40. Kh4 {[%clk 0:00:16]}  Rc3 {[%clk 0:00:21]} 41. Kg5 {[%clk 0:00:16]}  Bf7 {[%clk 0:00:17]} 42. Rf6 {[%clk 0:00:15]}  Rc1 {[%clk 0:00:14]} 43. Bg4 {[%clk 0:00:15]}  Rg1 {[%clk 0:00:14]} 44. Rxd6 {[%clk 0:00:14]}  Be8 {[%clk 0:00:11]} 45. Rg6+ {[%clk 0:00:11]}  Bxg6 {[%clk 0:00:10]} 46. d6 {[%clk 0:00:11]}  Be8 {[%clk 0:00:07]} 47. Kf4 {[%clk 0:00:07]}  Rxg4+ {[%clk 0:00:06]} 48. Kxg4 {[%clk 0:00:08]}  Kf6 {[%clk 0:00:06]} 49. Kf4 {[%clk 0:00:08]}  Ke6 {[%clk 0:00:07]} 50. Ke4 {[%clk 0:00:09]}  Kxd6 {[%clk 0:00:07]} 51. Kd3 {[%clk 0:00:07]}  a5 {[%clk 0:00:07]} 52. Kc3 {[%clk 0:00:08]}  a4 {[%clk 0:00:07]} 53. Kd3 {[%clk 0:00:08]}  Ke5 {[%clk 0:00:07]} 54. Kc3 {[%clk 0:00:09]}  Ke4 {[%clk 0:00:07]} 55. Kc2 {[%clk 0:00:07]}  Kd4 {[%clk 0:00:07]} 56. Kb2 {[%clk 0:00:08]}  Kxc4 {[%clk 0:00:07]} 57. Ka3 {[%clk 0:00:09]}  Kd3 {[%clk 0:00:06]} 58. Kb2 {[%clk 0:00:09]}  c4 {[%clk 0:00:07]} 59. Kc1 {[%clk 0:00:10]}  c3 {[%clk 0:00:07]} 60. Kb1 {[%clk 0:00:11]}  Kd2 {[%clk 0:00:06]} 61. Ka1 {[%clk 0:00:10]}  c2 {[%clk 0:00:06]} 62. Ka2 {[%clk 0:00:07]}  Bf7+ {[%clk 0:00:05]} 0-1


[Site "https://www.chess.com"]

[Event "Titled Tuesday Blitz June 27 Late 2023"]
[White "Urbina Perez, Juan Antonio"]
[Black "Li, Eric"]
[WhiteFideId "2217368"]
[BlackFideId "30939941"]
[WhiteElo "2458"]
[BlackElo "2258"]
[Result "1-0"]
[Round "6"]
[TimeControl "180+2"]
[Date "2023.06.27"]
[WhiteClock "0:00:54"]
[BlackClock "0:00:18"]
[Board "135"]

1. e4 {[%clk 0:03:00]}  c5 {[%clk 0:02:54]} 2. Nf3 {[%clk 0:03:00]}  Nc6 {[%clk 0:02:44]} 3. d4 {[%clk 0:02:59]}  cxd4 {[%clk 0:02:45]} 4. Nxd4 {[%clk 0:03:00]}  g6 {[%clk 0:02:45]} 5. Nxc6 {[%clk 0:02:53]}  bxc6 {[%clk 0:02:43]} 6. Qd4 {[%clk 0:02:52]}  f6 {[%clk 0:02:41]} 7. Bc4 {[%clk 0:02:48]}  Bg7 {[%clk 0:02:41]} 8. O-O {[%clk 0:02:45]}  e6 {[%clk 0:02:41]} 9. Nc3 {[%clk 0:02:40]}  d5 {[%clk 0:02:38]} 10. exd5 {[%clk 0:02:39]}  cxd5 {[%clk 0:02:39]} 11. Nxd5 {[%clk 0:02:19]}  exd5 {[%clk 0:02:22]} 12. Bxd5 {[%clk 0:02:08]}  Ne7 {[%clk 0:02:21]} 13. Re1 {[%clk 0:02:05]}  Rb8 {[%clk 0:02:06]} 14. Bf4 {[%clk 0:02:02]}  Rb6 {[%clk 0:01:47]} 15. Qc4 {[%clk 0:01:28]}  Ba6 {[%clk 0:01:39]} 16. Qa4+ {[%clk 0:01:23]}  Qd7 {[%clk 0:01:31]} 17. Bf7+ {[%clk 0:01:16]}  Kd8 {[%clk 0:01:23]} 18. Rad1 {[%clk 0:01:14]}  Bc8 {[%clk 0:01:19]} 19. Rxd7+ {[%clk 0:01:07]}  Bxd7 {[%clk 0:01:20]} 20. Qxa7 {[%clk 0:01:05]}  Nd5 {[%clk 0:00:21]} 21. Bxd5 {[%clk 0:00:59]}  Be6 {[%clk 0:00:18]} 22. Qxb6+ {[%clk 0:00:54]} 1-0


[Site "https://www.chess.com"]

[Event "Titled Tuesday Blitz June 27 Late 2023"]
[White "nicolasulaneobelassi"]
[Black "Cluke86"]
[WhiteElo "2426"]
[BlackElo "2250"]
[Result "0-1"]
[Round "6"]
[TimeControl "180+2"]
[Date "2023.06.27"]
[WhiteClock "0:00:17"]
[BlackClock "0:00:42"]
[Board "136"]

1. e4 {[%clk 0:03:00]}  d6 {[%clk 0:02:59]} 2. d4 {[%clk 0:03:00]}  Nf6 {[%clk 0:02:59]} 3. Nc3 {[%clk 0:03:00]}  e5 {[%clk 0:02:59]} 4. Nf3 {[%clk 0:03:00]}  Nbd7 {[%clk 0:02:59]} 5. Be2 {[%clk 0:03:00]}  Be7 {[%clk 0:02:57]} 6. h3 {[%clk 0:02:57]}  c6 {[%clk 0:02:57]} 7. a4 {[%clk 0:02:57]}  Qc7 {[%clk 0:02:55]} 8. a5 {[%clk 0:02:57]}  h6 {[%clk 0:02:54]} 9. Be3 {[%clk 0:02:56]}  g5 {[%clk 0:02:49]} 10. Nd2 {[%clk 0:02:54]}  Nf8 {[%clk 0:02:46]} 11. Nc4 {[%clk 0:02:51]}  Ng6 {[%clk 0:02:41]} 12. g3 {[%clk 0:02:42]}  Be6 {[%clk 0:02:37]} 13. Qd2 {[%clk 0:02:30]}  Nxe4 {[%clk 0:02:33]} 14. Nxe4 {[%clk 0:02:24]}  d5 {[%clk 0:02:28]} 15. dxe5 {[%clk 0:02:08]}  dxc4 {[%clk 0:02:22]} 16. Nd6+ {[%clk 0:02:07]}  Kf8 {[%clk 0:02:15]} 17. Bxc4 {[%clk 0:02:00]}  Nxe5 {[%clk 0:02:05]} 18. Bxe6 {[%clk 0:01:47]}  Nf3+ {[%clk 0:02:02]} 19. Ke2 {[%clk 0:01:45]}  Nxd2 {[%clk 0:02:02]} 20. Nxf7 {[%clk 0:01:41]}  Rh7 {[%clk 0:01:35]} 21. Kxd2 {[%clk 0:01:40]}  Rxf7 {[%clk 0:01:32]} 22. Bxf7 {[%clk 0:01:41]}  Kxf7 {[%clk 0:01:31]} 23. f4 {[%clk 0:01:36]}  Rd8+ {[%clk 0:01:26]} 24. Ke2 {[%clk 0:01:35]}  c5 {[%clk 0:01:23]} 25. Rhf1 {[%clk 0:01:29]}  Kg6 {[%clk 0:01:16]} 26. Ra4 {[%clk 0:01:20]}  Qc6 {[%clk 0:01:15]} 27. f5+ {[%clk 0:01:13]}  Kf7 {[%clk 0:01:11]} 28. Rg4 {[%clk 0:01:10]}  Qg2+ {[%clk 0:01:05]} 29. Rf2 {[%clk 0:01:07]}  Qxh3 {[%clk 0:01:04]} 30. Kf3 {[%clk 0:01:07]}  Qh1+ {[%clk 0:00:55]} 31. Rg2 {[%clk 0:01:03]}  Rd1 {[%clk 0:00:49]} 32. f6 {[%clk 0:00:46]}  Bd6 {[%clk 0:00:47]} 33. Bf2 {[%clk 0:00:31]}  Rd2 {[%clk 0:00:46]} 34. Re4 {[%clk 0:00:28]}  Rxc2 {[%clk 0:00:44]} 35. g4 {[%clk 0:00:27]}  Kxf6 {[%clk 0:00:43]} 36. Bg3 {[%clk 0:00:17]}  Qxg2+ {[%clk 0:00:42]} 0-1


[Site "https://www.chess.com"]

[Event "Titled Tuesday Blitz June 27 Late 2023"]
[White "Vila Dupla, Aurelio"]
[Black "Lopez Del Alamo, Antonio"]
[WhiteFideId "2203383"]
[BlackFideId "2227339"]
[WhiteElo "2195"]
[BlackElo "2362"]
[Result "0-1"]
[Round "6"]
[TimeControl "180+2"]
[Date "2023.06.27"]
[WhiteClock "0:00:00"]
[BlackClock "0:00:19"]
[Board "138"]

1. Nf3 {[%clk 0:03:00]}  Nf6 {[%clk 0:02:49]} 2. d4 {[%clk 0:03:00]}  g6 {[%clk 0:02:28]} 3. g3 {[%clk 0:02:58]}  Bg7 {[%clk 0:02:28]} 4. Bg2 {[%clk 0:02:59]}  O-O {[%clk 0:02:29]} 5. O-O {[%clk 0:02:59]}  d6 {[%clk 0:02:29]} 6. c4 {[%clk 0:02:59]}  c6 {[%clk 0:02:29]} 7. Nc3 {[%clk 0:02:59]}  Qa5 {[%clk 0:02:29]} 8. e4 {[%clk 0:02:57]}  e5 {[%clk 0:02:28]} 9. h3 {[%clk 0:02:46]}  exd4 {[%clk 0:02:27]} 10. Nxd4 {[%clk 0:02:46]}  Nbd7 {[%clk 0:02:27]} 11. Qe2 {[%clk 0:02:16]}  Re8 {[%clk 0:02:03]} 12. Be3 {[%clk 0:02:13]}  Nc5 {[%clk 0:01:43]} 13. Nb3 {[%clk 0:02:07]}  Nxb3 {[%clk 0:01:41]} 14. axb3 {[%clk 0:02:06]}  Qc7 {[%clk 0:01:40]} 15. Bd4 {[%clk 0:01:58]}  a6 {[%clk 0:01:33]} 16. f4 {[%clk 0:01:37]}  Bd7 {[%clk 0:01:01]} 17. Rad1 {[%clk 0:01:31]}  c5 {[%clk 0:00:56]} 18. Bf2 {[%clk 0:01:30]}  Bc6 {[%clk 0:00:56]} 19. Qc2 {[%clk 0:01:27]}  b5 {[%clk 0:00:52]} 20. Nd5 {[%clk 0:01:12]}  Bxd5 {[%clk 0:00:48]} 21. cxd5 {[%clk 0:01:10]}  Nd7 {[%clk 0:00:38]} 22. h4 {[%clk 0:01:04]}  Rec8 {[%clk 0:00:33]} 23. h5 {[%clk 0:01:03]}  c4 {[%clk 0:00:33]} 24. hxg6 {[%clk 0:00:49]}  hxg6 {[%clk 0:00:32]} 25. Bd4 {[%clk 0:00:48]}  cxb3 {[%clk 0:00:31]} 26. Qxb3 {[%clk 0:00:47]}  Qc4 {[%clk 0:00:31]} 27. Qxc4 {[%clk 0:00:45]}  Rxc4 {[%clk 0:00:30]} 28. Bxg7 {[%clk 0:00:45]}  Kxg7 {[%clk 0:00:31]} 29. Rfe1 {[%clk 0:00:43]}  Rac8 {[%clk 0:00:30]} 30. e5 {[%clk 0:00:43]}  Nc5 {[%clk 0:00:27]} 31. e6 {[%clk 0:00:35]}  Kf6 {[%clk 0:00:26]} 32. exf7 {[%clk 0:00:32]}  Kxf7 {[%clk 0:00:27]} 33. Bh3 {[%clk 0:00:32]}  Rc2 {[%clk 0:00:25]} 34. Bxc8 {[%clk 0:00:31]}  Rxb2 {[%clk 0:00:25]} 35. Be6+ {[%clk 0:00:31]}  Kf6 {[%clk 0:00:24]} 36. Ra1 {[%clk 0:00:28]}  b4 {[%clk 0:00:22]} 37. Reb1 {[%clk 0:00:26]}  Rxb1+ {[%clk 0:00:22]} 38. Rxb1 {[%clk 0:00:26]}  a5 {[%clk 0:00:22]} 39. Bg4 {[%clk 0:00:20]}  b3 {[%clk 0:00:22]} 40. Be2 {[%clk 0:00:14]}  a4 {[%clk 0:00:21]} 41. Bc4 {[%clk 0:00:14]}  Kf5 {[%clk 0:00:21]} 42. Kf2 {[%clk 0:00:14]}  Ke4 {[%clk 0:00:21]} 43. Ke2 {[%clk 0:00:14]}  Kd4 {[%clk 0:00:21]} 44. Bxb3 {[%clk 0:00:06]}  axb3 {[%clk 0:00:20]} 45. g4 {[%clk 0:00:05]}  Kc3 {[%clk 0:00:20]} 46. f5 {[%clk 0:00:05]}  gxf5 {[%clk 0:00:19]} 47. g5 {[%clk 0:00:05]}  Kc2 {[%clk 0:00:19]} 48. Rxb3 {[%clk 0:00:04]}  Kxb3 {[%clk 0:00:18]} 49. g6 {[%clk 0:00:04]}  Ne4 {[%clk 0:00:19]} 50. g7 {[%clk 0:00:04]}  Nf6 {[%clk 0:00:19]} 51. Ke3 {[%clk 0:00:04]}  Kc4 {[%clk 0:00:19]} 52. Kf4 {[%clk 0:00:04]}  Kxd5 {[%clk 0:00:20]} 53. Kxf5 {[%clk 0:00:05]}  Ng8 {[%clk 0:00:18]} 54. Kg6 {[%clk 0:00:05]}  Ke6 {[%clk 0:00:19]} 55. Kh7 {[%clk 0:00:00]}  Ne7 {[%clk 0:00:19]} 0-1


[Site "https://www.chess.com"]

[Event "Titled Tuesday Blitz June 27 Late 2023"]
[White "Wendt, Jan-Dietrich"]
[Black "Waldo Zalapa, Alejandro"]
[WhiteFideId "4623797"]
[BlackFideId "5106109"]
[WhiteElo "2352"]
[BlackElo "2166"]
[Result "1-0"]
[Round "6"]
[TimeControl "180+2"]
[Date "2023.06.27"]
[WhiteClock "0:00:19"]
[BlackClock "0:00:18"]
[Board "139"]

1. Nf3 {[%clk 0:03:00]}  d5 {[%clk 0:02:56]} 2. c4 {[%clk 0:03:00]}  dxc4 {[%clk 0:02:55]} 3. e3 {[%clk 0:02:59]}  Nf6 {[%clk 0:02:54]} 4. Bxc4 {[%clk 0:02:59]}  Bf5 {[%clk 0:02:54]} 5. Qb3 {[%clk 0:02:57]}  e6 {[%clk 0:02:47]} 6. Qxb7 {[%clk 0:02:56]}  Nbd7 {[%clk 0:02:47]} 7. d4 {[%clk 0:02:49]}  Bd6 {[%clk 0:02:37]} 8. Nc3 {[%clk 0:02:46]}  O-O {[%clk 0:02:36]} 9. O-O {[%clk 0:02:38]}  Nb6 {[%clk 0:02:34]} 10. Bb3 {[%clk 0:02:30]}  Bb4 {[%clk 0:02:26]} 11. Bd2 {[%clk 0:02:14]}  Bxc3 {[%clk 0:02:26]} 12. Bxc3 {[%clk 0:02:09]}  Be4 {[%clk 0:02:26]} 13. Qa6 {[%clk 0:02:07]}  Bxf3 {[%clk 0:02:25]} 14. gxf3 {[%clk 0:02:07]}  Nfd5 {[%clk 0:02:25]} 15. Qe2 {[%clk 0:01:59]}  Qh4 {[%clk 0:02:22]} 16. f4 {[%clk 0:01:51]}  f5 {[%clk 0:02:20]} 17. Kh1 {[%clk 0:01:26]}  Rf6 {[%clk 0:02:19]} 18. Rg1 {[%clk 0:01:26]}  Kf7 {[%clk 0:02:16]} 19. Rg2 {[%clk 0:01:11]}  Rg6 {[%clk 0:02:15]} 20. Rag1 {[%clk 0:01:09]}  Nf6 {[%clk 0:01:51]} 21. f3 {[%clk 0:01:04]}  Rd8 {[%clk 0:01:41]} 22. Be1 {[%clk 0:00:58]}  Qh5 {[%clk 0:01:37]} 23. Rg5 {[%clk 0:00:57]}  Qh6 {[%clk 0:01:28]} 24. Rxf5 {[%clk 0:00:49]}  Rxg1+ {[%clk 0:01:23]} 25. Kxg1 {[%clk 0:00:50]}  Qg6+ {[%clk 0:00:56]} 26. Rg5 {[%clk 0:00:50]}  Qb1 {[%clk 0:00:55]} 27. Kf2 {[%clk 0:00:34]}  h6 {[%clk 0:00:54]} 28. Re5 {[%clk 0:00:33]}  Nbd5 {[%clk 0:00:51]} 29. f5 {[%clk 0:00:33]}  exf5 {[%clk 0:00:49]} 30. e4 {[%clk 0:00:32]}  fxe4 {[%clk 0:00:49]} 31. fxe4 {[%clk 0:00:32]}  c6 {[%clk 0:00:41]} 32. exd5 {[%clk 0:00:28]}  cxd5 {[%clk 0:00:41]} 33. Kg2 {[%clk 0:00:26]}  Qg6+ {[%clk 0:00:37]} 34. Bg3 {[%clk 0:00:24]}  Qg4 {[%clk 0:00:27]} 35. Re7+ {[%clk 0:00:22]}  Kf8 {[%clk 0:00:25]} 36. Qxg4 {[%clk 0:00:22]}  Nxg4 {[%clk 0:00:24]} 37. Rxa7 {[%clk 0:00:23]}  Ne3+ {[%clk 0:00:24]} 38. Kf3 {[%clk 0:00:22]}  Nf5 {[%clk 0:00:24]} 39. Be5 {[%clk 0:00:22]}  g5 {[%clk 0:00:23]} 40. Bc2 {[%clk 0:00:21]}  Nh4+ {[%clk 0:00:21]} 41. Kg4 {[%clk 0:00:20]}  Rb8 {[%clk 0:00:18]} 42. Bxb8 {[%clk 0:00:19]} 1-0


[Site "https://www.chess.com"]

[Event "Titled Tuesday Blitz June 27 Late 2023"]
[White "Ng, Matthew K"]
[Black "Kujawski, Adam"]
[WhiteFideId "2094371"]
[BlackFideId "1100920"]
[WhiteElo "2154"]
[BlackElo "2339"]
[Result "0-1"]
[Round "6"]
[TimeControl "180+2"]
[Date "2023.06.27"]
[WhiteClock "0:00:00"]
[BlackClock "0:00:03"]
[Board "141"]

1. e4 {[%clk 0:03:00]}  e5 {[%clk 0:02:55]} 2. Nf3 {[%clk 0:03:00]}  Nc6 {[%clk 0:02:55]} 3. Bc4 {[%clk 0:03:00]}  Nf6 {[%clk 0:02:55]} 4. d3 {[%clk 0:02:58]}  d5 {[%clk 0:02:55]} 5. exd5 {[%clk 0:02:58]}  Nxd5 {[%clk 0:02:56]} 6. O-O {[%clk 0:02:58]}  Nb6 {[%clk 0:02:56]} 7. Bb3 {[%clk 0:02:57]}  Bg4 {[%clk 0:02:55]} 8. h3 {[%clk 0:02:53]}  Bh5 {[%clk 0:02:55]} 9. c3 {[%clk 0:02:50]}  Qe7 {[%clk 0:02:49]} 10. Nbd2 {[%clk 0:02:45]}  O-O-O {[%clk 0:02:48]} 11. Qc2 {[%clk 0:02:42]}  Kb8 {[%clk 0:02:39]} 12. a4 {[%clk 0:02:40]}  a5 {[%clk 0:02:33]} 13. Re1 {[%clk 0:02:34]}  f6 {[%clk 0:02:31]} 14. Ba2 {[%clk 0:02:00]}  Qd7 {[%clk 0:02:28]} 15. Bb1 {[%clk 0:01:58]}  Bg6 {[%clk 0:02:24]} 16. Ne4 {[%clk 0:01:56]}  Nd5 {[%clk 0:02:18]} 17. Be3 {[%clk 0:01:41]}  Nxe3 {[%clk 0:01:45]} 18. fxe3 {[%clk 0:01:41]}  Bxe4 {[%clk 0:01:38]} 19. dxe4 {[%clk 0:01:41]}  Bc5 {[%clk 0:01:37]} 20. Ba2 {[%clk 0:01:39]}  Ne7 {[%clk 0:01:25]} 21. Rad1 {[%clk 0:01:35]}  Qc6 {[%clk 0:01:22]} 22. Kf2 {[%clk 0:01:10]}  Bb6 {[%clk 0:00:43]} 23. Nh4 {[%clk 0:00:16]}  Kc8 {[%clk 0:00:36]} 24. Nf5 {[%clk 0:00:14]}  Nxf5 {[%clk 0:00:34]} 25. exf5 {[%clk 0:00:15]}  Qc5 {[%clk 0:00:23]} 26. Be6+ {[%clk 0:00:14]}  Kb8 {[%clk 0:00:23]} 27. Re2 {[%clk 0:00:10]}  c6 {[%clk 0:00:20]} 28. Rb1 {[%clk 0:00:04]}  g6 {[%clk 0:00:16]} 29. Qe4 {[%clk 0:00:04]}  gxf5 {[%clk 0:00:14]} 30. Bxf5 {[%clk 0:00:05]}  Rd6 {[%clk 0:00:09]} 31. b4 {[%clk 0:00:04]}  Qd5 {[%clk 0:00:10]} 32. Qxd5 {[%clk 0:00:03]}  cxd5 {[%clk 0:00:10]} 33. bxa5 {[%clk 0:00:03]}  Bxa5 {[%clk 0:00:10]} 34. Rb3 {[%clk 0:00:03]}  Ka7 {[%clk 0:00:08]} 35. Reb2 {[%clk 0:00:04]}  b6 {[%clk 0:00:09]} 36. Bd3 {[%clk 0:00:03]}  e4 {[%clk 0:00:06]} 37. Bb5 {[%clk 0:00:03]}  f5 {[%clk 0:00:06]} 38. Rc2 {[%clk 0:00:03]}  Rf8 {[%clk 0:00:04]} 39. Kg3 {[%clk 0:00:04]}  Rg6+ {[%clk 0:00:03]} 40. Kf4 {[%clk 0:00:04]}  Rh6 {[%clk 0:00:02]} 41. Rbb2 {[%clk 0:00:03]}  Rh4+ {[%clk 0:00:02]} 42. Ke5 {[%clk 0:00:02]}  f4 {[%clk 0:00:02]} 43. exf4 {[%clk 0:00:02]}  Rhxf4 {[%clk 0:00:01]} 44. Kxd5 {[%clk 0:00:02]}  R4f5+ {[%clk 0:00:02]} 45. Kxe4 {[%clk 0:00:01]}  Rc5 {[%clk 0:00:03]} 46. Kd3 {[%clk 0:00:01]}  Rd8+ {[%clk 0:00:03]} 47. Ke3 {[%clk 0:00:00]}  Bxc3 {[%clk 0:00:03]} 0-1


[Site "https://www.chess.com"]

[Event "Titled Tuesday Blitz June 27 Late 2023"]
[White "Brown, Raehanna"]
[Black "Roman, Rodrigo"]
[WhiteFideId "7402740"]
[BlackFideId "3701220"]
[WhiteElo "2143"]
[BlackElo "2338"]
[Result "1-0"]
[Round "6"]
[TimeControl "180+2"]
[Date "2023.06.27"]
[WhiteClock "0:00:18"]
[BlackClock "0:00:26"]
[Board "142"]

1. c4 {[%clk 0:03:00]}  e5 {[%clk 0:02:57]} 2. Nc3 {[%clk 0:03:01]}  Nf6 {[%clk 0:02:55]} 3. Nf3 {[%clk 0:03:00]}  Nc6 {[%clk 0:02:52]} 4. g3 {[%clk 0:03:00]}  Bb4 {[%clk 0:02:48]} 5. Bg2 {[%clk 0:02:58]}  O-O {[%clk 0:02:42]} 6. O-O {[%clk 0:02:58]}  d5 {[%clk 0:02:36]} 7. cxd5 {[%clk 0:02:56]}  Nxd5 {[%clk 0:02:37]} 8. Nxe5 {[%clk 0:02:20]}  Nxe5 {[%clk 0:02:26]} 9. Nxd5 {[%clk 0:02:18]}  Bd6 {[%clk 0:02:26]} 10. d4 {[%clk 0:02:18]}  Nc4 {[%clk 0:02:24]} 11. b3 {[%clk 0:02:13]}  Nb6 {[%clk 0:02:24]} 12. Nxb6 {[%clk 0:02:12]}  axb6 {[%clk 0:02:25]} 13. Bb2 {[%clk 0:02:10]}  Re8 {[%clk 0:02:21]} 14. e4 {[%clk 0:02:08]}  c6 {[%clk 0:02:13]} 15. Kh1 {[%clk 0:02:01]}  Bd7 {[%clk 0:02:08]} 16. f4 {[%clk 0:02:00]}  Ba3 {[%clk 0:02:08]} 17. Bc3 {[%clk 0:01:58]}  Qc7 {[%clk 0:02:00]} 18. f5 {[%clk 0:01:43]}  Rad8 {[%clk 0:01:41]} 19. Qg4 {[%clk 0:01:41]}  Bc8 {[%clk 0:01:23]} 20. Rad1 {[%clk 0:01:05]}  Bf8 {[%clk 0:01:16]} 21. Qg5 {[%clk 0:00:50]}  f6 {[%clk 0:00:58]} 22. Qg4 {[%clk 0:00:46]}  Qf7 {[%clk 0:00:54]} 23. Rf2 {[%clk 0:00:36]}  b5 {[%clk 0:00:49]} 24. d5 {[%clk 0:00:31]}  cxd5 {[%clk 0:00:46]} 25. exd5 {[%clk 0:00:27]}  Bc5 {[%clk 0:00:41]} 26. Rfd2 {[%clk 0:00:18]}  b4 {[%clk 0:00:31]} 27. Bxb4 {[%clk 0:00:17]}  Bxb4 {[%clk 0:00:29]} 28. Qxb4 {[%clk 0:00:18]}  Bxf5 {[%clk 0:00:29]} 29. d6 {[%clk 0:00:18]}  Re5 {[%clk 0:00:24]} 30. d7 {[%clk 0:00:17]}  Rxd7 {[%clk 0:00:18]} 31. Rxd7 {[%clk 0:00:16]}  Bxd7 {[%clk 0:00:19]} 32. Qxb7 {[%clk 0:00:16]}  Be8 {[%clk 0:00:19]} 33. Bd5 {[%clk 0:00:15]}  Rxd5 {[%clk 0:00:17]} 34. Qxd5 {[%clk 0:00:16]}  Qxd5+ {[%clk 0:00:17]} 35. Rxd5 {[%clk 0:00:16]}  Kf7 {[%clk 0:00:17]} 36. Rc5 {[%clk 0:00:16]}  Ke7 {[%clk 0:00:18]} 37. Rc7+ {[%clk 0:00:16]}  Bd7 {[%clk 0:00:18]} 38. Kg1 {[%clk 0:00:15]}  Kd6 {[%clk 0:00:18]} 39. Rc2 {[%clk 0:00:16]}  g5 {[%clk 0:00:18]} 40. Rd2+ {[%clk 0:00:16]}  Ke6 {[%clk 0:00:19]} 41. Kf2 {[%clk 0:00:17]}  f5 {[%clk 0:00:19]} 42. Ke3 {[%clk 0:00:18]}  Bc6 {[%clk 0:00:19]} 43. Rc2 {[%clk 0:00:17]}  Be4 {[%clk 0:00:20]} 44. Rc5 {[%clk 0:00:18]}  h5 {[%clk 0:00:19]} 45. a4 {[%clk 0:00:17]}  Kd6 {[%clk 0:00:20]} 46. Rc4 {[%clk 0:00:17]}  h4 {[%clk 0:00:20]} 47. gxh4 {[%clk 0:00:17]}  Bd5 {[%clk 0:00:20]} 48. Rd4 {[%clk 0:00:17]}  gxh4 {[%clk 0:00:20]} 49. b4 {[%clk 0:00:16]}  Ke6 {[%clk 0:00:19]} 50. Rxd5 {[%clk 0:00:15]}  Kxd5 {[%clk 0:00:20]} 51. Kf4 {[%clk 0:00:15]}  Kc4 {[%clk 0:00:20]} 52. a5 {[%clk 0:00:15]}  Kb5 {[%clk 0:00:20]} 53. Kxf5 {[%clk 0:00:14]}  Ka6 {[%clk 0:00:20]} 54. Kg4 {[%clk 0:00:14]}  Kb5 {[%clk 0:00:21]} 55. Kxh4 {[%clk 0:00:14]}  Ka6 {[%clk 0:00:22]} 56. Kg5 {[%clk 0:00:15]}  Kb5 {[%clk 0:00:23]} 57. h4 {[%clk 0:00:15]}  Ka6 {[%clk 0:00:23]} 58. h5 {[%clk 0:00:16]}  Kb5 {[%clk 0:00:24]} 59. h6 {[%clk 0:00:16]}  Ka6 {[%clk 0:00:25]} 60. h7 {[%clk 0:00:17]}  Kb5 {[%clk 0:00:26]} 61. h8=Q {[%clk 0:00:18]}  Ka6 {[%clk 0:00:27]} 62. Qa8+ {[%clk 0:00:17]}  Kb5 {[%clk 0:00:28]} 63. Qb7+ {[%clk 0:00:17]}  Ka4 {[%clk 0:00:27]} 64. a6 {[%clk 0:00:17]}  Kb3 {[%clk 0:00:26]} 65. a7 {[%clk 0:00:18]}  Ka4 {[%clk 0:00:26]} 66. a8=Q+ {[%clk 0:00:19]}  Kb3 {[%clk 0:00:27]} 67. Qf3+ {[%clk 0:00:19]}  Kc4 {[%clk 0:00:27]} 68. Qac6+ {[%clk 0:00:19]}  Kd4 {[%clk 0:00:26]} 69. Qcd5# {[%clk 0:00:18]} 1-0


[Site "https://www.chess.com"]